Cogmind - Beta 15 @@@ ROGUE MODE // 2025.09.05 @ 17:35:51 Player: odium reigns Result: Destroyed by Y-72 Warden with Railgun Performance ------------- Evolutions (5) 2500 Regions Visited (13) 2600 Robots Destroyed (116) 580 Value Destroyed (3974) 3974 Prototype IDs (14) 280 Alien Tech Used (0) 0 Bonus (2076) 2076 TOTAL SCORE: 12010 Bonus ------- High Alert Combat Kills 101 Follower Combat Kills 1601 Met R17 at Cetus 500 Friendly Fire -126 Cogmind --------- Core Integrity 0/1000 Matter 300/300 Energy 747/885 System Corruption 7% Temperature Cool (7) Movement Treading (160) Location -5/Archives Parts ------- > --- POWER (2) -------- Neutrino Core Light Antimatter Reactor > --- PROPULSION (4) --- Heavy Treads Centrium Heavy Treads > --- UTILITY (8) ------ Improved Cooling System (fused) Large Storage Unit Advanced Energy Well Targeting Computer Targeting Computer Centrium Medium Armor Plating Centrium Medium Armor Plating Remote Shield > --- WEAPON (3) ------- Advanced Variable Charge Gun Advanced Variable Charge Gun Advanced Variable Charge Gun > --- INVENTORY (15) --- Neutrino Core Heavy Treads Heavy Treads Centrium Heavy Treads Advanced Cooling System Advanced Cooling System Compact Matter Pod (150) Improved Targeting Computer Centrium Medium Armor Plating Improved Recalibrator Advanced Variable Charge Gun Advanced Variable Charge Gun Peak State ------------ > --- POWER ------------ Neutrino Core Light Antimatter Reactor > --- PROPULSION ------- Heavy Treads Centrium Heavy Treads > --- UTILITY ---------- Improved Cooling System Large Storage Unit Advanced Energy Well Targeting Computer Targeting Computer Centrium Medium Armor Plating Centrium Medium Armor Plating Remote Shield > --- WEAPON ----------- Advanced Variable Charge Gun Advanced Variable Charge Gun Advanced Variable Charge Gun > --- INVENTORY -------- Neutrino Core Heavy Treads Heavy Treads Centrium Heavy Treads Advanced Cooling System Advanced Cooling System Compact Matter Pod Improved Targeting Computer Centrium Medium Armor Plating Improved Recalibrator Advanced Variable Charge Gun Advanced Variable Charge Gun [Rating: 114] Favorites ----------- Power Light Deuterium Engine Engine Light Deuterium Engine Power Core Neutrino Core Reactor Compact Particle Reactor Propulsion Improved Treads Treads Improved Treads Leg Improved Carbon-fiber Leg Hover Unit Improved Gravmag System Utility Core Analyzer Device Advanced Heat Sink Storage Medium Storage Unit Processor Core Analyzer Protection Hardened Light Armor Plating Weapon Improved Light Cannon Energy Gun Advanced Variable Charge Gun Energy Cannon Heavy Ion Cannon Ballistic Gun Improved Assault Rifle Ballistic Cannon Improved Light Cannon Special Weapon Plasma Cutter Slashing Weapon Ripper Special Melee Weapon Improved Datajack Build | -11 -10 -10 -9 -9 -9 -7 -6 -6 -6 -5 -5 -5 -5 ------- Run | Yrd Mat Min Mat Sto Rec Fac Fac Low Low Fac Ext Cet Arc Slots Evolved 10 | . . . 2 . . 4 2 . . 2 . . . Power 1 | . . . . . . 1 . . . . . . . Propulsion 2 | . . . 2 . . . . . . . . . . Utility 6 | . . . . . . 2 2 . . 2 . . . Weapon 1 | . . . . . . 1 . . . . . . . Parts Attached 152 | 8 5 . 15 9 2 19 10 1 2 14 58 8 1 Power 24 | 1 . . 2 . . 5 3 . 1 1 11 . . Engine 11 | 1 . . 2 . . 2 1 . 1 1 3 . . Core 11 | . . . . . . 3 2 . . . 6 . . Reactor 2 | . . . . . . . . . . . 2 . . Propulsion 44 | 3 . . 7 7 . 5 2 . 1 4 13 2 . Treads 24 | 2 . . 4 7 . 2 . . . 1 6 2 . Leg 17 | 1 . . 3 . . 3 2 . 1 . 7 . . Wheel . | . . . . . . . . . . . . . . Hover 3 | . . . . . . . . . . 3 . . . Flight . | . . . . . . . . . . . . . . Utility 43 | 2 1 . 1 1 2 6 2 1 . 8 16 2 1 Device 22 | 1 . . 1 1 1 . . . . 7 10 1 . Storage 6 | 1 . . . . 1 1 . . . . 3 . . Processor 11 | . . . . . . 4 2 1 . 1 3 . . Hackware . | . . . . . . . . . . . . . . Protection 4 | . 1 . . . . 1 . . . . . 1 1 Artifact . | . . . . . . . . . . . . . . Weapon 41 | 2 4 . 5 1 . 3 3 . . 1 18 4 . Energy Gun 12 | 1 2 . . . . . . . . . 6 3 . Energy Cannon 2 | . . . . . . 1 . . . 1 . . . Ballistic Gun 11 | 1 . . 2 . . 2 1 . . . 4 1 . Ballistic Cannon 13 | . 2 . 3 . . . 2 . . . 6 . . Launcher . | . . . . . . . . . . . . . . Special Weapon 1 | . . . . 1 . . . . . . . . . Impact Weapon . | . . . . . . . . . . . . . . Slashing Weapon 1 | . . . . . . . . . . . 1 . . Piercing Weapon . | . . . . . . . . . . . . . . Special Melee Weapon 1 | . . . . . . . . . . . 1 . . Unidentified Prototypes 8 | . . . 1 . . 1 . . . . 2 4 . Parts Lost 31 | . . . . 1 . . . 2 . 20 7 1 . Power 4 | . . . . . . . . 1 . 3 . . . Propulsion 10 | . . . . . . . . . . 6 4 . . Utility 12 | . . . . 1 . . . 1 . 7 2 1 . Weapon 5 | . . . . . . . . . . 4 1 . . Highest Loss Streak 12 | . . . . 1 . . . 1 . 12 4 1 . To Critical Strikes 1 | . . . . . . . . . . . 1 . . Average Backups 8 | 4 7 8 7 7 8 9 9 9 10 8 6 11 12 Power . | 1 2 2 1 1 1 . . . . . . 1 1 Propulsion 1 | 1 2 2 . 1 2 2 1 1 1 1 1 3 3 Utility 3 | . . 2 1 2 1 4 6 6 7 4 3 6 6 Weapon 1 | 1 2 2 3 2 3 2 1 1 1 1 . 1 2 Tool/Special . | . . . . . . . . . . . . . . Unused Backups 49 | . 2 . 3 3 . 9 4 2 . 5 9 3 9 Power 6 | . . . 1 1 . . . . . . 3 . 1 Propulsion 11 | . . . 2 . . 3 . . . . 3 . 3 Utility 19 | . . . . 1 . 4 2 2 . 3 3 1 3 Weapon 13 | . 2 . . 1 . 2 2 . . 2 . 2 2 Tool/Special . | . . . . . . . . . . . . . . Average Slot Usage (%) 93 | . 99 100 96 93 99 98 98 97 99 73 89 87 88 Engine 6 | . 14 14 11 10 11 12 6 . 5 2 2 . . Core 3 | . . . . . . 2 6 10 6 2 4 5 5 Reactor 1 | . . . . . . . . . . . 2 5 5 Treads 17 | . 28 28 20 42 44 29 1 . . 2 6 10 11 Leg 8 | . . . 20 . . . 24 26 26 12 9 . . Device 9 | . 3 . 5 6 10 1 . . . 11 17 17 15 Storage 7 | . 14 14 11 11 11 12 6 6 6 4 2 10 11 Processor 15 | . . . . . . 10 32 33 33 23 23 14 11 Protection 1 | . 10 14 5 . . 3 . . . . . 1 6 Energy Gun 3 | . 16 . . . . . . . . . 4 13 17 Ballistic Gun 5 | . 3 . 1 13 4 14 7 6 6 3 2 2 . Ballistic Cannon 8 | . 8 28 20 7 11 2 6 13 13 5 7 . . Special Weapon 1 | . . . . 1 6 . . . . . . . . Peak Build Rating 114 | 9 11 11 22 24 21 47 58 59 58 69 90 112 114 Average Rating 50 | 5 10 11 14 21 20 37 54 56 57 52 77 103 111 On Entrance 39 | . 9 11 11 22 19 21 47 58 54 58 41 87 111 Naked Turns . | . . . . . . . . . . . . . . Heaviest Build 85 | 15 23 23 23 23 22 40 48 43 45 51 74 81 85 Greatest Support 150 | 40 40 40 92 92 98 98 72 72 74 56 140 150 150 Greatest Overweight (x) 2 | . . . . . . 1 1 . . 1 2 . . Average Overweight (x) . | . . . . . . . . . . . . . . Largest Inventory Capacity 15 | 8 8 8 8 8 10 10 10 10 10 10 15 15 15 Average Capacity 9 | 6 8 8 8 8 9 10 10 10 10 9 9 15 15 Most Carried 15 | 7 8 8 8 8 9 10 10 10 10 10 15 15 15 Average Carried 9 | 4 7 8 7 7 8 9 9 9 10 8 8 14 15 Final Capacity 15 | 8 8 8 8 8 10 10 10 10 10 5 15 15 15 Final Carried 15 | 6 8 8 8 8 9 10 10 10 10 5 15 15 15 Class Distribution -------------------- 45% | Scavenger-Gunner 33% | Mutant 5% | Commander-Tank 4% | Commander-Mutant 3% | Scavenger-Tank 3% | Scavenger-Mutant Dominant Class ---------------- Mutant | -10/Materials Mutant | -10/Mines Mutant | -9/Materials Mutant | -9/Storage Mutant | -9/Recycling Commander-Tank | -7/Factory Scavenger-Gunner | -6/Factory Scavenger-Gunner | -6/Lower Caves Scavenger-Gunner | -6/Lower Caves Scavenger-Gunner | -5/Factory Scavenger-Gunner | -5/Extension Scavenger-Gunner | -5/Cetus Scavenger-Tank | -5/Archives Resources | -11 -10 -10 -9 -9 -9 -7 -6 -6 -6 -5 -5 -5 -5 ----------- Run | Yrd Mat Min Mat Sto Rec Fac Fac Low Low Fac Ext Cet Arc Matter Collected 5136 | 295 152 32 517 620 96 346 57 656 131 38 1958 221 17 Remotely . | . . . . . . . . . . . . . . Salvage Created 5509 | 133 338 32 448 364 127 460 54 320 15 46 3058 114 . Parts 239 | 8 19 1 35 18 9 36 4 10 1 2 91 5 . Haulers Intercepted 13 | . . . 2 1 . 1 . . . . 9 . . Recyclers Shooed 6 | . 1 1 . . . 1 . . . . 3 . . Parts Field Recycled . | . . . . . . . . . . . . . . Retrieved Matter . | . . . . . . . . . . . . . . Parts Self-Destructed 12 | . . . . . . . . 7 5 . . . . Prevented . | . . . . . . . . . . . . . . Kills | -11 -10 -10 -9 -9 -9 -7 -6 -6 -6 -5 -5 -5 -5 ------- Run | Yrd Mat Min Mat Sto Rec Fac Fac Low Low Fac Ext Cet Arc Combat Hostiles Destroyed 70 | . 9 . 8 9 3 6 1 10 . 1 21 2 . Guns 23 | . 4 . . 5 1 3 . 1 . 1 7 1 . Cannons 42 | . 3 . 8 4 2 3 1 6 . . 14 1 . AOE 5 | . 2 . . . . . . 3 . . . . . Classes Destroyed 18 | 2 2 . 6 1 . 3 . 1 . 1 2 . . Worker 3 | . . . . . . 2 . . . . 1 . . Builder 5 | . . . 3 1 . . . . . . 1 . . Tunneler 4 | 3 . . 1 . . . . . . . . . . Hauler 13 | . . . 2 1 . 1 . . . . 9 . . Recycler 14 | 1 1 1 . . . 2 . . . . 9 . . Drone 2 | . . . . 2 . . . . . . . . . Watcher 6 | . . . 3 . . 1 . . . . 1 1 . Swarmer 8 | . 2 . . . . 2 . 3 . . 1 . . Grunt 36 | . 7 . 5 4 1 . . 6 . . 13 . . Brawler 3 | . . . 1 1 . . . 1 . . . . . Duelist 3 | . . . 1 1 . 1 . . . . . . . Sentry 13 | . . . 1 3 2 1 1 . . . 5 . . Specialist 2 | . . . . . . 2 . . . . . . . Hunter 1 | . . . . . . . . . . . 1 . . Programmer 1 | . . . . . . 1 . . . . . . . Heavy 1 | . . . . . . . . . . 1 . . . Behemoth 1 | . . . . . . . . . . . 1 . . Cetus Guard 2 | . . . . . . . . . . . . 2 . Samaritan 3 | . . . . . . . . 2 1 . . . . Best Kill Streak 11 | 4 4 1 11 4 2 3 1 6 . 1 7 1 . Combat Bots Only 6 | . 4 . 4 4 2 2 1 6 . 1 4 1 . Max Kills in Single Turn 3 | 2 2 1 2 1 1 3 1 3 1 1 2 1 . Gunslinging . | . . . . . . . . . . . . . . Exploded 3 | . 2 . . . . . . 3 . . . . . Melee . | . . . . . . . . . . . . . . Uniques/NPCs Destroyed . | . . . . . . . . . . . . . . Combat | -11 -10 -10 -9 -9 -9 -7 -6 -6 -6 -5 -5 -5 -5 -------- Run | Yrd Mat Min Mat Sto Rec Fac Fac Low Low Fac Ext Cet Arc Hostile Shots Fired 552 | . 36 . 49 64 14 62 18 38 . 97 137 35 2 Missed 159 | . 11 . 8 20 5 25 7 6 . 29 42 5 1 Hits 393 | . 25 . 41 44 9 37 11 32 . 68 95 30 1 Melee 12 | . . . 3 7 . . . 2 . . . . . Projectile 381 | . 25 . 38 37 9 37 11 30 . 68 95 30 1 AOE 1 | . . . . . . . . . . 1 . . . Critical Strikes 38 | . 1 . 1 4 1 . . 4 . 7 9 11 . Damage Taken 7855 | 20 277 . 517 679 129 424 82 721 . 2039 2125 787 55 Core 1361 | 20 20 . 99 78 . 28 5 96 . 585 383 25 22 Absorbed by Shields 192 | . . . . . . 62 . . . 17 15 81 17 Reduced by Siege Mode 102 | . . . . . . . . . . . . 97 5 Ignored by Resistances 12 | . . . . . . 12 . . . . . . . Regen/Repaired (Parts) 19 | . . . . . . . . . . 19 . . . Core Remaining (%) 83 | 92 . 84 . . 55 96 . . 88 . . . . Volleys Fired 305 | 5 28 . 38 45 7 18 2 30 1 15 95 20 1 Largest 3 | 2 2 . 2 2 2 3 3 3 3 3 3 3 1 Hottest 515 | 60 78 . 66 56 56 118 130 112 109 109 200 515 80 Shots Fired 702 | 10 45 . 76 84 14 54 6 86 3 21 266 36 1 Gun 297 | 10 17 . . 51 7 36 2 26 1 14 103 29 1 Cannon 404 | . 28 . 76 33 7 18 4 60 2 7 162 7 . Launcher . | . . . . . . . . . . . . . . Special 1 | . . . . . . . . . . . 1 . . Kinetic 566 | 5 28 . 76 84 14 38 4 86 3 20 192 16 . Thermal 105 | . . . . . . 16 2 . . . 66 20 1 Explosive . | . . . . . . . . . . . . . . Electromagnetic 31 | 5 17 . . . . . . . . 1 8 . . Robot Hit Streak 26 | 8 11 . 13 20 5 7 5 12 3 7 26 12 3 Robot Miss Streak 10 | . 6 . 6 2 1 2 1 10 2 3 4 2 . Penetration Max 1 | . . . . . . . . . . . 1 1 . Secondary Targets . | . . . . . . . . . . . . . . Shots Hit Robots 477 | 8 28 . 32 63 9 29 5 58 2 16 196 30 1 Core Hits 250 | 5 15 . 19 18 4 20 2 42 3 8 98 15 1 Critical Kills 3 | . . . . . . . . . . . 3 . . Critical Parts Destroyed 5 | . . . . . . . . . . . 5 . . Critical Strikes 24 | . 1 . 1 3 1 . 1 . 1 . 16 . . Burn 1 | . . . . . . . . . . . 1 . . Destroy 8 | . . . . . . . . . . . 8 . . Blast 15 | . 1 . 1 3 1 . 1 . 1 . 7 . . Melee Attacks 5 | . . . . . . . . . . . 5 . . Impact . | . . . . . . . . . . . . . . Slashing 1 | . . . . . . . . . . . 1 . . Piercing . | . . . . . . . . . . . . . . Sneak Attacks 3 | . . . . . . . . . . . 3 . . Combat Hostiles . | . . . . . . . . . . . . . . Follow-up Attacks . | . . . . . . . . . . . . . . Damage Inflicted 12231 | 140 566 9 815 1098 162 963 117 1474 63 334 5466 999 25 Guns 4482 | 107 202 . . 594 99 293 38 204 . 158 1957 805 25 Cannons 6820 | . 270 . 815 502 63 357 79 1064 63 167 3246 194 . Explosions 774 | 32 94 . . . . 299 . 206 . . 143 . . Melee 85 | . . . . . . . . . . . 85 . . Ramming 59 | 1 . 9 . 2 . 14 . . . 9 24 . . Kinetic 8713 | 41 270 . 815 1096 162 317 90 1268 63 308 3803 480 . Thermal 2981 | 32 94 . . . . 632 27 206 . . 1446 519 25 Explosive . | . . . . . . . . . . . . . . Electromagnetic 393 | 66 202 . . . . . . . . 17 108 . . Impact . | . . . . . . . . . . . . . . Slashing 85 | . . . . . . . . . . . 85 . . Piercing . | . . . . . . . . . . . . . . Highest Corruption 7 | . 2 2 . . . 1 . 4 4 5 7 7 7 Average Corruption 4 | . 2 2 . . . 1 . 4 4 3 5 7 7 Corruption Purged . | . . . . . . . . . . . . . . Corruption Blocked . | . . . . . . . . . . . . . . Effects 109 | . 1 . . . . 3 . 9 7 3 68 15 3 Message Errors 21 | . 1 . . . . 1 . 2 1 1 11 4 . Matter Fused 26 | . . . . . . . . 2 2 . 18 3 1 Heat Flow Errors 15 | . . . . . . . . 4 2 . 8 . 1 Energy Discharges 16 | . . . . . . . . . . 1 12 3 . Parts Rejected 2 | . . . . . . . . . . 1 1 . . Parts Fused 2 | . . . . . . . . . . . 2 . . Data Loss (minor) 18 | . . . . . . 1 . 1 2 . 10 3 1 Data Loss (major) 3 | . . . . . . . . . . . 1 2 . Alerts 3 | . . . . . . 1 . . . . 2 . . Weapon Failures 3 | . . . . . . . . . . . 3 . . Overload Shots 5 | . . . . . . . . . . . . 5 . Overflow Damage 216 | . . . 28 . 7 28 . 95 6 . 52 . . Projectiles 142 | . . . 28 . 7 . . 49 6 . 52 . . Explosions 74 | . . . . . . 28 . 46 . . . . . Melee . | . . . . . . . . . . . . . . Knockbacks 44 | . 4 . 7 4 . . . 14 . . 14 1 . Impact . | . . . . . . . . . . . . . . Kinetic 42 | . 4 . 7 4 . . . 14 . . 12 1 . Secondary 2 | . . . . . . . . . . . 2 . . Self-Inflicted Damage 214 | 21 27 . . . . 79 . 86 . 1 . . . Shots 5 | 1 1 . . . . 2 . 1 . . . . . Rammed 13 | 1 . 2 . . . 3 . . . 6 1 . . Targets Rammed 17 | 1 . 3 . 1 . 3 . . . 6 3 . . Kicked 2 | . . . . . . . . . . . 2 . . Crushed 2 | . . 1 . 1 . . . . . . . . . Highest Temperature 482 | 12 189 . 268 23 23 214 157 482 348 20 217 403 54 Average Temperature 109 | 12 53 . 120 6 10 72 84 175 145 15 69 178 54 Received Heat Transfer 1835 | . 78 . 222 246 66 72 24 342 . 234 544 7 . Effects 15 | . . . . . . . . 9 3 . . 3 . Shutdowns 8 | . . . . . . . . 6 1 . . 1 . Energy Bleed 3 | . . . . . . . . . 1 . . 2 . Matter Decay 1 | . . . . . . . . 1 . . . . . Short Circuit 2 | . . . . . . . . 1 1 . . . . Damage (minor) 1 | . . . . . . . . 1 . . . . . Siege Activations 4 | . . . . . . . . . . . . 2 2 Total Turns 53 | . . . . . . . . . . . . 36 17 Longest Duration 19 | . . . . . . . . . . . . 19 13 Martial Activations . | . . . . . . . . . . . . . . Shielding Activations . | . . . . . . . . . . . . . . Robots Disrupted . | . . . . . . . . . . . . . . Combat Hostiles . | . . . . . . . . . . . . . . Robots Corrupted . | . . . . . . . . . . . . . . Combat Hostiles . | . . . . . . . . . . . . . . Parts Fried . | . . . . . . . . . . . . . . Impact Corruptions . | . . . . . . . . . . . . . . Robots Melted . | . . . . . . . . . . . . . . Combat Hostiles . | . . . . . . . . . . . . . . Parts Melted 7 | . . . . . . . . . . . 5 2 . Heat Transferred 4317 | . 100 . . . . 635 37 240 . . 2587 681 37 Parts Sabotaged . | . . . . . . . . . . . . . . Parts Stolen . | . . . . . . . . . . . . . . Parts Stripped . | . . . . . . . . . . . . . . Power Chain Reactions 3 | 1 1 . . . . . . . . . 1 . . Alert | -11 -10 -10 -9 -9 -9 -7 -6 -6 -6 -5 -5 -5 -5 ------- Run | Yrd Mat Min Mat Sto Rec Fac Fac Low Low Fac Ext Cet Arc Maximum Alert Level 3 | . . . . . . 1 . . . . 3 2 . Low Security (%) 73 | 100 100 100 100 100 100 65 100 . . 100 54 . 100 Level 1 16 | . . . . . . 34 . . . . 37 9 . Level 2 7 | . . . . . . . . . . . 2 90 . Level 3 1 | . . . . . . . . . . . 6 . . Level 4 . | . . . . . . . . . . . . . . Level 5 . | . . . . . . . . . . . . . . High Security . | . . . . . . . . . . . . . . Max Security . | . . . . . . . . . . . . . . Peak Influence 741 | 15 157 54 195 115 35 247 113 . . 30 741 502 195 Initial 412 | . . 54 14 59 18 6 104 . . . 1 412 155 Average 122 | 2 42 49 128 74 4 97 82 . . 2 182 434 176 Influence Increases 4001 | 20 262 5 310 328 142 578 59 225 . 79 1637 301 55 Destroy 0b10 Robot/C 2040 | . 180 . 160 180 60 200 20 200 . 20 840 160 20 Destroy 0b10 Robot/NC 285 | 20 5 5 45 10 . 40 . . . . 150 10 . Destroy Leader 354 | . 40 . 50 62 . 66 10 10 . 10 106 . . Allied During Kill 574 | . . . . . 7 62 . . . . 429 71 5 Successful Hack 165 | . 15 . 4 . 44 19 28 . . 34 21 . . Disable Machine 300 | . 15 . 45 45 30 90 . . . . 15 30 30 Destroy Structure 193 | . 7 . 6 1 1 101 1 . . . 46 30 . Lose Combat Pursuer 90 | . . . . 30 . . . 15 . 15 30 . . Influence Decreases 3861 | 20 123 105 208 421 175 380 229 237 31 75 904 649 304 Entered New Map 925 | . . 85 25 82 30 9 109 16 7 . 3 325 234 Time Decay 2264 | 20 123 20 183 279 145 271 120 211 24 55 529 254 30 Lost Part 80 | . . . . 10 . . . 10 . 20 30 10 . Lost Ally 592 | . . . . 50 . 100 . . . . 342 60 40 Squads Dispatched 15 | . 2 . 1 2 . 4 . . . 2 4 . . Investigation 2 | . 1 . . . . . . . . . 1 . . Extermination 3 | . . . . . . 2 . . . 1 . . . Reinforcement 10 | . 1 . 1 2 . 2 . . . 1 3 . . Assault . | . . . . . . . . . . . . . . Garrison . | . . . . . . . . . . . . . . Intercept . | . . . . . . . . . . . . . . Searches Triggered . | . . . . . . . . . . . . . . Construction Impeded 3 | . . . . . . 1 . . . . 2 . . Haulers Reinforced . | . . . . . . . . . . . . . . Active Scanning Responses . | . . . . . . . . . . . . . . Cargo Convoy Interrupts . | . . . . . . . . . . . . . . Stealth | -11 -10 -10 -9 -9 -9 -7 -6 -6 -6 -5 -5 -5 -5 --------- Run | Yrd Mat Min Mat Sto Rec Fac Fac Low Low Fac Ext Cet Arc Distress Signals 7 | . 1 . 1 2 . . . . . . 1 2 . Communications Jammed . | . . . . . . . . . . . . . . Distress Signals . | . . . . . . . . . . . . . . Times Spotted 138 | . 11 . 14 12 3 16 1 11 . 8 47 12 3 Peak Tracking Total 6 | . 6 . 6 3 1 3 1 4 . 5 4 5 3 Tactical Retreats 6 | . . . . 2 . . . 1 . 1 2 . . Traps | -11 -10 -10 -9 -9 -9 -7 -6 -6 -6 -5 -5 -5 -5 ------- Run | Yrd Mat Min Mat Sto Rec Fac Fac Low Low Fac Ext Cet Arc Traps Triggered 4 | . 2 . . . . . . . . . 2 . . Indirectly . | . . . . . . . . . . . . . . Trap Hack Attempts . | . . . . . . . . . . . . . . Triggered . | . . . . . . . . . . . . . . Disarmed . | . . . . . . . . . . . . . . Reprogrammed . | . . . . . . . . . . . . . . Reused . | . . . . . . . . . . . . . . Traps Extracted . | . . . . . . . . . . . . . . Installed . | . . . . . . . . . . . . . . Triggered . | . . . . . . . . . . . . . . Machines | -11 -10 -10 -9 -9 -9 -7 -6 -6 -6 -5 -5 -5 -5 ---------- Run | Yrd Mat Min Mat Sto Rec Fac Fac Low Low Fac Ext Cet Arc Machines Disabled 26 | . 2 . 3 3 2 6 . 4 . . 2 2 2 Max in Single Turn 4 | . 1 . 1 1 1 4 . 4 . . 1 1 . Machines Repaired . | . . . . . . . . . . . . . . Machines Dismantled 3 | . . . . 1 2 . . . . . . . . Machines Sabotaged . | . . . . . . . . . . . . . . Overloaded Fab Kills . | . . . . . . . . . . . . . . Hacking | -11 -10 -10 -9 -9 -9 -7 -6 -6 -6 -5 -5 -5 -5 --------- Run | Yrd Mat Min Mat Sto Rec Fac Fac Low Low Fac Ext Cet Arc Machines Accessed 42 | . 3 . 2 3 5 6 3 . 1 4 12 3 . Terminals 38 | . 3 . 2 3 5 6 2 . . 2 12 3 . Fabricators 2 | . . . . . . . 1 . . 1 . . . Repair Stations 1 | . . . . . . . . . . 1 . . . Recycling Units . | . . . . . . . . . . . . . . Scanalyzers . | . . . . . . . . . . . . . . Garrison Access . | . . . . . . . . . . . . . . Total Hacks 78 | . 8 . 3 4 9 10 6 . 1 9 23 5 . Successful 44 | . 5 . 2 4 7 3 4 . 1 6 11 1 . Failed 34 | . 3 . 1 . 2 7 2 . . 3 12 4 . Catastrophic 6 | . . . . . 1 3 1 . . . 1 . . Database Lockouts . | . . . . . . . . . . . . . . Manual . | . . . . . . . . . . . . . . Terminals 72 | . 8 . 3 4 9 10 5 . . 5 23 5 . Fabricators 2 | . . . . . . . 1 . . 1 . . . Repair Stations 3 | . . . . . . . . . . 3 . . . Recycling Units . | . . . . . . . . . . . . . . Scanalyzers . | . . . . . . . . . . . . . . Garrison Access . | . . . . . . . . . . . . . . Terminal Hacks 40 | . 5 . 2 4 7 3 3 . 1 3 11 1 . Record 2 | . . . . . 1 . . . . . . 1 . Prototype ID Bank 3 | . 1 . . . 1 1 . . . . . . . Open Door 13 | . . . . 2 . . . . 1 1 9 . . Open DSF 2 | . . . . . . 1 1 . . . . . . Emergency Access Points 2 | . 1 . 1 . . . . . . . . . . Terminal Index 2 | . . . . . 1 . 1 . . . . . . Fabricator Index 1 | . . . . . 1 . . . . . . . . Alert Level 4 | . . . . 1 2 1 . . . . . . . Locate Traps 3 | . . . 1 . . . . . . 1 1 . . Investigation Status 1 | . 1 . . . . . . . . . . . . Hauler Manifests 3 | . . . . 1 1 . 1 . . . . . . Zone Layout 4 | . 2 . . . . . . . . 1 1 . . Fabricator Hacks 2 | . . . . . . . 1 . . 1 . . . Network Status 2 | . . . . . . . 1 . . 1 . . . Repair Station Hacks 2 | . . . . . . . . . . 2 . . . Scan Component 1 | . . . . . . . . . . 1 . . . Repair 1 | . . . . . . . . . . 1 . . . Recycling Unit Hacks . | . . . . . . . . . . . . . . Scanalyzer . | . . . . . . . . . . . . . . Garrison Access Hacks . | . . . . . . . . . . . . . . Unauthorized Hacks . | . . . . . . . . . . . . . . Terminals . | . . . . . . . . . . . . . . Fabricators . | . . . . . . . . . . . . . . Repair Stations . | . . . . . . . . . . . . . . Recycling Units . | . . . . . . . . . . . . . . Scanalyzers . | . . . . . . . . . . . . . . Garrison Access . | . . . . . . . . . . . . . . Data Cores Recovered . | . . . . . . . . . . . . . . Used . | . . . . . . . . . . . . . . Hacking Detections 30 | . 3 . 2 1 2 6 1 . . 4 8 3 . Full Trace Events . | . . . . . . . . . . . . . . Feedback Events . | . . . . . . . . . . . . . . Feedback Blocked . | . . . . . . . . . . . . . . Robot Schematics Acquired . | . . . . . . . . . . . . . . Robots Built . | . . . . . . . . . . . . . . Authchips . | . . . . . . . . . . . . . . Time . | . . . . . . . . . . . . . . Total Robot Build Rating . | . . . . . . . . . . . . . . Part Schematics Acquired . | . . . . . . . . . . . . . . Parts Built . | . . . . . . . . . . . . . . Authchips . | . . . . . . . . . . . . . . Time . | . . . . . . . . . . . . . . Total Part Build Rating . | . . . . . . . . . . . . . . Parts Repaired 1 | . . . . . . . . . . 1 . . . Time 30 | . . . . . . . . . . 30 . . . Parts Recycled . | . . . . . . . . . . . . . . Recycled Matter . | . . . . . . . . . . . . . . Retrieved Matter . | . . . . . . . . . . . . . . Retrieved Components . | . . . . . . . . . . . . . . Parts Scanalyzed . | . . . . . . . . . . . . . . Part Schematics Acquired . | . . . . . . . . . . . . . . Parts Damaged . | . . . . . . . . . . . . . . Bothacking | -11 -10 -10 -9 -9 -9 -7 -6 -6 -6 -5 -5 -5 -5 ------------ Run | Yrd Mat Min Mat Sto Rec Fac Fac Low Low Fac Ext Cet Arc Used RIF Installer . | . . . . . . . . . . . . . . Robots Hacked . | . . . . . . . . . . . . . . Non-combat . | . . . . . . . . . . . . . . Combat . | . . . . . . . . . . . . . . Robot Hacks Applied . | . . . . . . . . . . . . . . Relay Couplers Released . | . . . . . . . . . . . . . . Fabnet Peak Effective % . | . . . . . . . . . . . . . . Robots Rewired 23 | . . . . . 7 . . . . 1 15 . . Allies Hacked . | . . . . . . . . . . . . . . Hacks Repelled . | . . . . . . . . . . . . . . Allies | -11 -10 -10 -9 -9 -9 -7 -6 -6 -6 -5 -5 -5 -5 -------- Run | Yrd Mat Min Mat Sto Rec Fac Fac Low Low Fac Ext Cet Arc Total Allies 37 | . . . . . 7 . . . . 1 29 . . Largest Group 12 | . . . . . 7 7 1 1 . . 12 7 3 Highest-Rated Group 363 | . . . . . 140 140 27 27 . . 363 214 88 Highest-Rated Ally 159 | . . . . . 34 34 27 27 . . 159 39 34 Total Orders 9 | . . . . 2 2 . . 1 . . 4 . . STAY 2 | . . . . . 1 . . . . . 1 . . FOLLOW 2 | . . . . . 1 . . . . . 1 . . GUARD 2 | . . . . . . . . . . . 2 . . AID 1 | . . . . . . . . 1 . . . . . EXPLORE 2 | . . . . 2 . . . . . . . . . Ally Attacks 302 | . . . . . 2 16 . . . 2 210 59 13 Total Damage 5706 | . . . . . 93 531 . . . 45 3853 1015 169 Kills 49 | . . . . . . 6 . . . . 34 8 1 Allies Corrupted 2 | . . . . 2 . . . . . . . . . Allies Melted 2 | . . . . . . . . . . . 2 . . Intel | -11 -10 -10 -9 -9 -9 -7 -6 -6 -6 -5 -5 -5 -5 ------- Run | Yrd Mat Min Mat Sto Rec Fac Fac Low Low Fac Ext Cet Arc Active Infowar (turns) 4744 | 20 83 . 199 12 . 862 246 927 405 498 1492 . . Optics 2813 | . . . . . . 862 246 927 405 373 . . . Sensors 1754 | . . . . . . . . . . 400 1354 . . Terrain 314 | 20 83 . 199 12 . . . . . . . . . Decoding 1461 | . . . . . . . . . . 134 1327 . . Jamming 167 | . . . . . . . . . . 2 165 . . Robot Analysis Total . | . . . . . . . . . . . . . . Derelict Logs Recovered 3 | . . . . . . . . 2 1 . . . . Drone Launches 14 | . . . . 14 . . . . . . . . . Drone Recoveries . | . . . . . . . . . . . . . . Decoded 0b10 Intel 14 | . . . . . . . . . . . 14 . . Traps 10 | . . . . . . . . . . . 10 . . Emergency Access 3 | . . . . . . . . . . . 3 . . Exits 1 | . . . . . . . . . . . 1 . . Exploration | -11 -10 -10 -9 -9 -9 -7 -6 -6 -6 -5 -5 -5 -5 ------------- Run | Yrd Mat Min Mat Sto Rec Fac Fac Low Low Fac Ext Cet Arc Turns Passed 8990 | 106 403 42 398 684 1261 981 246 927 405 498 2405 557 77 Spaces Moved 4947 | 49 196 24 166 239 696 542 150 690 328 318 1247 281 21 Core 151 | 7 . . . . . . . . . 134 10 . . Treads 2810 | 38 196 24 94 239 696 535 24 . . 54 608 281 21 Legs 1908 | 4 . . 72 . . 7 126 690 328 130 551 . . Wheels . | . . . . . . . . . . . . . . Hover 78 | . . . . . . . . . . . 78 . . Flight . | . . . . . . . . . . . . . . Fastest Speed 50 | 50 160 160 120 160 160 145 120 120 120 50 80 160 160 Average Speed 141 | 141 160 160 142 160 160 158 136 120 122 100 139 160 160 Slowest Speed 260 | 160 160 160 160 160 160 190 225 120 123 250 260 160 160 Overloaded Moves . | . . . . . . . . . . . . . . Propulsion Burnouts . | . . . . . . . . . . . . . . Robots Hopped . | . . . . . . . . . . . . . . Potential Cave-ins . | . . . . . . . . . . . . . . Cave-ins Triggered . | . . . . . . . . . . . . . . Exploration Rate (%) 41 | 5 34 12 21 57 95 20 3 75 39 7 97 79 43 Regions Visited 13 Branch Regions 8 Pre-discovered Areas 1 | . . . . . . . . 1 . . . . . Known Exits Taken 1 | . . . . . . . . . 1 . . . . Unknown Exits Taken 12 | 1 1 1 1 1 1 1 1 1 . 1 1 1 . Scrap Searched 7 | . . . . . . . . 5 2 . . . . Spaces Dug . | . . . . . . . . . . . . . . Terrain Destroyed 103 | 6 7 . 7 . . 37 1 23 . . 21 1 . Melee . | . . . . . . . . . . . . . . Projectile 43 | . 2 . 7 . . 1 1 10 . . 21 1 . AOE 60 | 6 5 . . . . 36 . 13 . . . . . Terrain Rammed . | . . . . . . . . . . . . . . Walls Destroyed . | . . . . . . . . . . . . . . Machines Disabled . | . . . . . . . . . . . . . . Actions | -11 -10 -10 -9 -9 -9 -7 -6 -6 -6 -5 -5 -5 -5 --------- Run | Yrd Mat Min Mat Sto Rec Fac Fac Low Low Fac Ext Cet Arc Total 6327 | 75 242 26 254 422 803 636 187 731 331 478 1717 361 64 Wait 353 | . 3 . 2 78 5 10 . 1 . 109 75 29 41 Move 4934 | 48 195 23 165 238 695 541 149 689 327 317 1246 280 21 Hop . | . . . . . . . . . . . . . . Pick Up 133 | 13 4 . 13 5 3 18 10 5 . 12 41 9 . Fast Attach 62 | . 3 . 8 3 . 4 3 . 1 3 32 5 . Attach 37 | 7 . . 2 . 1 4 2 1 . 11 7 2 . Detach 3 | . 2 . . . . . . . . . 1 . . Swap 78 | 1 2 . 7 14 3 13 9 1 1 . 23 3 1 Drop 153 | . 5 . 19 13 1 25 12 4 1 1 59 13 . Fire 305 | 5 28 . 38 45 7 18 2 30 1 15 95 20 1 Melee 5 | . . . . . . . . . . . 5 . . Ram 1 | . . . . . . . . . . 1 . . . Kick 2 | . . . . . . . . . . . 2 . . Crush 14 | 1 . 3 . 1 . 3 . . . 5 1 . . Escape Stasis . | . . . . . . . . . . . . . . Rewire 209 | . . . . . 75 . . . . 4 130 . . Trap . | . . . . . . . . . . . . . . Miscellaneous 38 | . . . . 25 13 . . . . . . . . Route ------- -11/Scrapyard -10/Materials (discovered 2 exits: Mat / [*Min]) -10/Mines -9/Materials -9/Storage -9/Recycling -7/Factory -6/Factory -6/Lower Caves -6/Lower Caves -5/Factory -5/Extension (discovered 3 exits: *Fac x2 / *Cet) -5/Cetus (discovered 2 exits: *Fac / [*Arc]) -5/Archives History --------- Turn | Location | Event 7 | -11/Scrapyard | Discovered new exit (range 16) 107 | -11/Scrapyard | Entered Materials 232 | -10/Materials | Discovered new exit (range 18) 310 | -10/Materials | Build established: Mutant 395 | -10/Materials | Discovered new exit (range 15) 510 | -10/Materials | Entered Mines 541 | -10/Mines | Discovered new exit (range 9) 552 | -10/Mines | Entered Materials 552 | -9/Materials | Evolved 2 slots: Propulsion x2 903 | -9/Materials | Discovered new exit (range 5) 950 | -9/Materials | Entered Storage 1374 | -9/Storage | Lost 4 allies 1469 | -9/Storage | Found Prototype Launcher 1548 | -9/Storage | Discovered new exit (range 3) 1634 | -9/Storage | Entered Recycling 1635 | -9/Recycling | Met a Zionite searching for Scraptown 2459 | -9/Recycling | Discovered new exit (range 15) 2895 | -9/Recycling | Entered Factory 2895 | -7/Factory | Accompanied by 7 allies 2895 | -7/Factory | Evolved 4 slots: Power x1, Utility x2, Weapon x1 3380 | -7/Factory | Build established: Commander-Tank 3790 | -7/Factory | Discovered new exit (range 16) 3876 | -7/Factory | Entered another Factory area 3876 | -6/Factory | Accompanied by 1 ally 3876 | -6/Factory | Evolved 2 slots: Utility x2 3949 | -6/Factory | Discovered new exit (range 7) 4122 | -6/Factory | Entered Lower Caves 4122 | -6/Lower Caves | Accompanied by 1 ally 4141 | -6/Lower Caves | Build established: Scavenger-Gunner 4729 | -6/Lower Caves | Attracted the attention of an 0b10 base 4950 | -6/Lower Caves | Learned Factory emergency access door positions 5043 | -6/Lower Caves | Discovered new exit (range 6) 5049 | -6/Lower Caves | Entered another Lower Caves area 5062 | -6/Lower Caves | Entered a destroyed Warlord outpost 5215 | -6/Lower Caves | Identified exit to Factory 5454 | -6/Lower Caves | Entered Factory 5454 | -5/Factory | Evolved 2 slots: Utility x2 5756 | -5/Factory | Lost 12 parts (2p4n4u2w) 5851 | -5/Factory | Repaired Broken Gauss Rifle 5907 | -5/Factory | Lost 5 parts (1p1n2u1w) 5934 | -5/Factory | Core integrity fell below 50% 5951 | -5/Factory | Discovered new exit (range 6) 5952 | -5/Factory | Entered Extension 5993 | -5/Extension | Build established: Mutant 6058 | -5/Extension | Lost 4 parts (2n1u1w) 6103 | -5/Extension | Rescued a captive Derelict 6113 | -5/Extension | Rescued a captive Derelict 6392 | -5/Extension | Rescued a captive Derelict 6393 | -5/Extension | Rescued a captive Derelict 6421 | -5/Extension | Spotted B-75 Beast 6591 | -5/Extension | Rescued A7 6850 | -5/Extension | Build established: Scavenger-Gunner 6902 | -5/Extension | Disrupted transfer network 7048 | -5/Extension | Allies destroyed B-75 Beast 7069 | -5/Extension | Extracted ID and sensor layout for unrecognized location from A7's data core 7078 | -5/Extension | Lost 3 allies 7105 | -5/Extension | Spotted B-75 Beast 7115 | -5/Extension | Core integrity fell below 20% 7120 | -5/Extension | Destroyed B-75 Beast 7135 | -5/Extension | Identified exit to Factory 7558 | -5/Extension | Discovered exit to Factory (range 16) 7560 | -5/Extension | Discovered new exit (range 15) 7713 | -5/Extension | Rescued a captive Derelict 7714 | -5/Extension | Rescued a captive Derelict 7950 | -5/Extension | Lost 4 allies 7976 | -5/Extension | Rescued a captive Derelict 7977 | -5/Extension | Rescued a captive Derelict 8000 | -5/Extension | Rescued a captive Derelict 8001 | -5/Extension | Rescued a captive Derelict 8028 | -5/Extension | Rescued a captive Derelict 8060 | -5/Extension | Rescued a captive Derelict 8061 | -5/Extension | Rescued a captive Derelict 8248 | -5/Extension | Lost 3 allies 8357 | -5/Extension | Entered Cetus 8357 | -5/Cetus | Accompanied by 7 allies 8382 | -5/Cetus | Spotted Cetus Guard 8383 | -5/Cetus | Spotted Cetus Guard 8385 | -5/Cetus | Spotted Cetus Guard 8385 | -5/Cetus | Spotted Cetus Guard 8392 | -5/Cetus | Allies destroyed Cetus Guard 8398 | -5/Cetus | Destroyed Cetus Guard 8401 | -5/Cetus | Allies destroyed Cetus Guard 8405 | -5/Cetus | Allies destroyed Cetus Guard 8616 | -5/Cetus | Discovered new exit (range 16) 8650 | -5/Cetus | Spotted Cetus Guard 8651 | -5/Cetus | Spotted Cetus Guard 8654 | -5/Cetus | Spotted Cetus Guard 8655 | -5/Cetus | Spotted Cetus Guard 8667 | -5/Cetus | Allies destroyed Cetus Guard 8671 | -5/Cetus | Allies destroyed Cetus Guard 8674 | -5/Cetus | Destroyed Cetus Guard 8679 | -5/Cetus | Allies destroyed Cetus Guard 8697 | -5/Cetus | Discovered exit to Factory (range 16) 8712 | -5/Cetus | Met Revision 17 8914 | -5/Cetus | Entered Archives 8914 | -5/Archives | Accompanied by 3 allies 8957 | -5/Archives | Build established: Scavenger-Tank 8991 | -5/Archives | Destroyed by Y-72 Warden with Railgun Last Messages --------------- Activated siege mode. Slug penetrates MQ-LNC(h). MQ-LNC(h) destroyed. HV Slug penetrates Y-72 Warden. Y-72 Warden suffers critical hit (Destroy). Destroyed Med. Treads. Slug penetrates O-32 Director. Slug penetrates Wall. Slug penetrates O-32 Director. Slug penetrates Wall. Slug penetrates WD-GJA(b). Slug penetrates 3F-U9C(h). HV Slug penetrates Y-72 Warden. Ended siege mode. Acquired 17 matter. WD-GJA(b) destroyed. Slug penetrates 3F-U9C(h). Y-72 Warden suffers critical hit (Destroy). Slug penetrates 3F-U9C(h). Penetrated by Slug. Map ----- +----------------------------------------------------+ | | | | | | | | | | | | | | | | | ?????????????????????????????????????????? | | ?????????????????????????????????????????? | | ?????????????????????????????????????????? | | ?????????????????????????????????????????? | | ?????????????????????????????????????????? | | ?????????????????????????????????????????? | | ?????????????????????????????????????????? | | ?????????????????????????????????????????? | | ?????????????????????????????????????????? | | ?????????????????????????????????????????? | | ?????????????????????????????????????????? | | ??????????????????????" ?????????????????? | | ????????????????????"#"##????????????????? | | ???????????????????""""""#???????????????? | | ???????????????????" V"""#???????????????? | | ??????????????????" "#???????????????? | | ??????????????####" "# #???????????? | | ??#############"#@ o Y #??????????? | | ??# !!%!%!% ""?????????? | | ??# ]h=! % "????????? | | ??# "?????????? | | ??#####+########; ?????????? | | ??# #??""o ??????????? | | ??# #??"" % "??????????? | | ??# """"""" "??????????? | | ??#"""""""""#"V ???????????? | | ??#""""""""""""" ???????????? | | ??#"""""""""#"?"" Y ????????????? | | ??#"""""""""#""?"Y o ????????????? | | ??????######????# o ?????????????? | | ?????????????????# #"" ???????????????? | | ?????????????????? #???????????????????? | | ?????????????????? ????????????????????? | | ?????????????????? ??????????????????????? | | ?????????????????????????????????????????? | | ?????????????????????????????????????????? | | ?????????????????????????????????????????? | | ?????????????????????????????????????????? | | ?????????????????????????????????????????? | | ?????????????????????????????????????????? | | ?????????????????????????????????????????? | | ?????????????????????????????????????????? | +----------------------------------------------------+ Best States ------------- Heat Dissipation 136 Energy Generation 37 Energy Capacity 885 Matter Stores 450 Matter Capacity 450 Sight Range 20 Robot Scan Range 16 Terrain Scan Range 16 Terrain Scan Density 10 Jamming Range 14 Additional Mass Support 6 Armor Coverage 450 Resistance: EM 15 Phase Shifting 5 Evasion (%) 55 Targeting Accuracy 18 Core Analysis 9 Recoil Reduction 4 Kinecelleration 40 Item Schematics ----------------- None Robot Schematics ------------------ None Fabricated ------------ Nothing Repaired ---------- Gauss Rifle | 86% | -5/Factory | Broken Alien Tech Used ----------------- None Achievements -------------- \\IAMDERELICT Challenges ------------ None Game ------ Seed BracePrecisionRecalibrator Manual? 0 Play Time 02:08:53 Cumulative 46.5 hours Start 2025.09.05 @ 04:08:49 End 2025.09.05 @ 17:35:51 Sessions 1 Manual Loads 0 Difficulty Rogue Special Mode None Game No. 32 Rogue 32 Adventurer 0 Explorer 0 Win Type - Total 0 Types 0/0/0/0/0/0/0/0/0/0 Lore% 19 Gallery% 38 Achievement% 32 Wizard Run 0 Options --------- Layout 0 ASCII 0 Keyboard 0 Movement Mouse Keybinds 0 Fullscreen 1 Font 12/Smallcaps Map View 38x28 Zoom Use 98% Tactical HUD 0 Map Filters NONE Filters NONE Steam SD RUN: b7ce1134-09af-49d3-a32b-416d1e82bdd0